Workbook

Sheet はじめに
B3: （ 使用方法 ）
B4: ① | C4: 基本情報を入力して下さい。（水色で表示されているのが入力の必要なセルです）
B5: ② | C5: 手控書シートに「葉分」・「タイプ」をプルダウンリストから選択し、重量を入力します。
C14: ※入力ミスがあるとセルが赤く表示されます。
B15: ③ | C15: はじめにのシートと手控書シートを印刷し、ご活用願います。
C16: ※入力ミスがあると特記事項欄に表示されます。
B18: 基本情報を入力して下さい
B19: 契約番号 | F19: 1234567
B20: 氏 名 | F20: 田村 一郎
B21: 総代区名 | F21: たばこ
B22: 販売月日 | F22: 2025-12-10
B23: 販売面積 | F23: 80 | H23: ａ
B24: Aタイプ価格 | F24: 1903 | G24: 円 | H24: 円/kg | I24: A
B25: Bタイプ価格 | F25: 1336 | G25: 円 | H25: 円/kg | I25: B
B26: P・S価格 | F26: 150 | G26: 円 | H26: 円/kg | I26: P
I27: S
B28: あなたの販売見込結果
B30: 契約番号 | D30: =F19 -> 1234567 | G30: 氏 名 | H30: =F20 -> 田村 一郎
B31: 販売面積 | D31: =F23 -> 80 | F31: a | G31: 総代区 | H31: =F21 -> たばこ
B33: 販売日 | C33: =F22 -> 2025-12-10
B35: 予定包数 | D35: =リンクシート!D403 -> 0 | F35: 包 | G35: １kg当代金 | I35: =IF(F45>0,ROUND(K45/F45,0)," ") ->  | J35: =IF(H35>0,ROUND(I35/H35,0)," ") ->  | K35: 円
B36: 予定重量 | D36: =リンクシート!D402 -> 0 | F36: kg | G36: 10a当重量 | I36: =IF(F45>0,ROUND(D36/F23*10,0)," ") ->  | J36: =IF(G36>0,ROUND(G36/F36*10,0)," ") ->  | K36: kg
B37: 予定買入代金 | D37: =K45 -> 0 | F37: 円 | G37: 10a当代金 | I37: =IF(F45>0,ROUND(D37/F23*10,0)," ") ->  | J37: =IF(G37>0,ROUND(G37/E37*10,0)," ") ->  | K37: 円
B39: 葉分タイプ別_重量（kg） | G39: 葉分タイプ別_金額（円）
B40: 葉分タイプ別重量 | C40: A | D40: B | E40: 色損計 | F40: 合計 | G40: 葉分タイプ別金額 | H40: A | I40: B | J40: 色損計 | K40: 合計
B41: 上葉 | C41: =SUMIFS(リンクシート!$D$2:$D$401,リンクシート!$B$2:$B$401,$B$41,リンクシート!$C$2:$C$401,$C$40) -> 0 | D41: =SUMIFS(リンクシート!$D$2:$D$401,リンクシート!$B$2:$B$401,$B$41,リンクシート!$C$2:$C$401,$D$40) -> 0 | E41: - | F41: =SUM(C41:E41) -> 0 | G41: 上葉 | H41: =ROUND(C41*$F$24,0) -> 0 | I41: =ROUND(D41*$F$25,0) -> 0 | J41: - | K41: =SUM(H41:J41) -> 0
B42: 本葉 | C42: =SUMIFS(リンクシート!$D$2:$D$401,リンクシート!$B$2:$B$401,$B$42,リンクシート!$C$2:$C$401,$C$40) -> 0 | D42: =SUMIFS(リンクシート!$D$2:$D$401,リンクシート!$B$2:$B$401,$B$42,リンクシート!$C$2:$C$401,$D$40) -> 0 | E42: =SUMIFS(リンクシート!$D$2:$D$401,リンクシート!$B$2:$B$401,$B$42,リンクシート!$C$2:$C$401,I26)+SUMIFS(リンクシート!$D$2:$D$401,リンクシート!$B$2:$B$401,$B$42,リンクシート!$C$2:$C$401,I27) -> 0 | F42: =SUM(C42:E42) -> 0 | G42: 本葉 | H42: =ROUND(C42*$F$24,0) -> 0 | I42: =ROUND(D42*$F$25,0) -> 0 | J42: =ROUND(E42*$F$26,0) -> 0 | K42: =SUM(H42:J42) -> 0
B43: 合葉 | C43: =SUMIFS(リンクシート!$D$2:$D$401,リンクシート!$B$2:$B$401,$B$43,リンクシート!$C$2:$C$401,$C$40) -> 0 | D43: =SUMIFS(リンクシート!$D$2:$D$401,リンクシート!$B$2:$B$401,$B$43,リンクシート!$C$2:$C$401,$D$40) -> 0 | E43: - | F43: 0 | G43: 合葉 | H43: =ROUND(C43*$F$24,0) -> 0 | I43: =ROUND(D43*$F$25,0) -> 0 | J43: - | K43: 0
B44: 中葉 | C44: =SUMIFS(リンクシート!$D$2:$D$401,リンクシート!$B$2:$B$401,$B$44,リンクシート!$C$2:$C$401,$C$40) -> 0 | D44: =SUMIFS(リンクシート!$D$2:$D$401,リンクシート!$B$2:$B$401,$B$44,リンクシート!$C$2:$C$401,$D$40) -> 0 | E44: =SUMIFS(リンクシート!$D$2:$D$401,リンクシート!$B$2:$B$401,$B$44,リンクシート!$C$2:$C$401,I26)+SUMIFS(リンクシート!$D$2:$D$401,リンクシート!$B$2:$B$401,$B$44,リンクシート!$C$2:$C$401,I27) -> 0 | F44: 0 | G44: 中葉 | H44: =ROUND(C44*$F$24,0) -> 0 | I44: =ROUND(D44*$F$25,0) -> 0 | J44: =ROUND(E44*$F$26,0) -> 0 | K44: 0
B45: 合計 | C45: =SUM(C41:C44) -> 0 | D45: =SUM(D41:D44) -> 0 | E45: =SUM(E41:E44) -> 0 | F45: =SUM(C45:E45) -> 0 | G45: 合計 | H45: =SUM(H41:H44) -> 0 | I45: =SUM(I41:I44) -> 0 | J45: 0 | K45: =SUM(H45:J45) -> 0
B47: 特記事項
B53: =IF(D36=F45,"","※手控書の葉分・タイプが正しく入力されていません。") -> 
B54: =IF(リンクシート!E402=0,"","※手控書の葉分・タイプ・重量の入力を確認して下さい。") -> 

Sheet 手控書_(1-200)
A1: 葉たばこ販売手控書 | E1: =はじめに!F22 -> 46001 | H1: 販売月日 | J1: =はじめに!F22 -> 2025-12-10 | W1: 【本人控え】 №1
T2: 出荷包数 | V2: =はじめに!$D$35 -> 0 | W2: 包
T3: 総 重 量 | V3: =はじめに!$D$36 -> 0 | W3: kg | AD3: =はじめに!F21 -> たばこ | AF3: 総代区 | AH3: 契約番号 | AJ3: =はじめに!F19 -> 1234567 | AL3: 氏 名 | AM3: =はじめに!F20 -> 田村 一郎
A5: № | B5: 葉 分 | C5: タイプ | D5: 重 量 | E5: 備 考 | G5: № | H5: 葉 分 | I5: タイプ | J5: 重 量 | K5: 備 考 | M5: № | N5: 葉 分 | O5: タイプ | P5: 重 量 | Q5: 備 考 | S5: № | T5: 葉 分 | U5: タイプ | V5: 重 量 | W5: 備 考
A6: 1 | F6: =IF(OR(C6="P",C6="S"),IF(OR(B6="上葉",B6="合葉"),1,0),0) -> 0 | G6: 26 | L6: =IF(OR(I6="P",I6="S"),IF(OR(H6="上葉",H6="合葉"),1,0),0) -> 0 | M6: 51 | R6: =IF(OR(O6="P",O6="S"),IF(OR(N6="上葉",N6="合葉"),1,0),0) -> 0 | S6: 76 | X6: =IF(OR(U6="P",U6="S"),IF(OR(T6="上葉",T6="合葉"),1,0),0) -> 0
A7: 2 | F7: =IF(OR(C7="P",C7="S"),IF(OR(B7="上葉",B7="合葉"),1,0),0) -> 0 | G7: 27 | L7: =IF(OR(I7="P",I7="S"),IF(OR(H7="上葉",H7="合葉"),1,0),0) -> 0 | M7: 52 | R7: =IF(OR(O7="P",O7="S"),IF(OR(N7="上葉",N7="合葉"),1,0),0) -> 0 | S7: 77 | X7: =IF(OR(U7="P",U7="S"),IF(OR(T7="上葉",T7="合葉"),1,0),0) -> 0
A8: 3 | F8: 0 | G8: 28 | L8: 0 | M8: 53 | R8: 0 | S8: 78 | X8: 0
A9: 4 | F9: 0 | G9: 29 | L9: 0 | M9: 54 | R9: 0 | S9: 79 | X9: 0
A10: 5 | F10: 0 | G10: 30 | L10: 0 | M10: 55 | R10: 0 | S10: 80 | X10: 0
A11: 6 | F11: 0 | G11: 31 | L11: =IF(OR(I11="P",I11="S"),IF(OR(H11="上葉",H11="合葉"),1,0),0) -> 0 | M11: 56 | R11: 0 | S11: 81 | X11: 0
A12: 7 | F12: 0 | G12: 32 | L12: =IF(OR(I12="P",I12="S"),IF(OR(H12="上葉",H12="合葉"),1,0),0) -> 0 | M12: 57 | R12: 0 | S12: 82 | X12: 0
A13: 8 | F13: 0 | G13: 33 | L13: 0 | M13: 58 | R13: 0 | S13: 83 | X13: 0
A14: 9 | F14: 0 | G14: 34 | L14: 0 | M14: 59 | R14: 0 | S14: 84 | X14: 0
A15: 10 | F15: 0 | G15: 35 | L15: 0 | M15: 60 | R15: 0 | S15: 85 | X15: 0
A16: 11 | F16: 0 | G16: 36 | L16: 0 | M16: 61 | R16: 0 | S16: 86 | X16: 0
A17: 12 | F17: 0 | G17: 37 | L17: 0 | M17: 62 | R17: 0 | S17: 87 | X17: 0
A18: 13 | F18: 0 | G18: 38 | L18: 0 | M18: 63 | R18: 0 | S18: 88 | X18: 0
A19: 14 | F19: =IF(OR(C19="P",C19="S"),IF(OR(B19="上葉",B19="合葉"),1,0),0) -> 0 | G19: 39 | L19: 0 | M19: 64 | R19: 0 | S19: 89 | X19: 0
A20: 15 | F20: =IF(OR(C20="P",C20="S"),IF(OR(B20="上葉",B20="合葉"),1,0),0) -> 0 | G20: 40 | L20: 0 | M20: 65 | R20: 0 | S20: 90 | X20: 0
A21: 16 | F21: 0 | G21: 41 | L21: 0 | M21: 66 | R21: 0 | S21: 91 | X21: 0
A22: 17 | F22: 0 | G22: 42 | L22: 0 | M22: 67 | R22: 0 | S22: 92 | X22: 0
A23: 18 | F23: 0 | G23: 43 | L23: 0 | M23: 68 | R23: =IF(OR(O23="P",O23="S"),IF(OR(N23="上葉",N23="合葉"),1,0),0) -> 0 | S23: 93 | X23: =IF(OR(U23="P",U23="S"),IF(OR(T23="上葉",T23="合葉"),1,0),0) -> 0
A24: 19 | F24: 0 | G24: 44 | L24: 0 | M24: 69 | R24: 0 | S24: 94 | X24: =IF(OR(U24="P",U24="S"),IF(OR(T24="上葉",T24="合葉"),1,0),0) -> 0
A25: 20 | F25: 0 | G25: 45 | L25: 0 | M25: 70 | R25: 0 | S25: 95 | X25: 0
A26: 21 | F26: 0 | G26: 46 | L26: 0 | M26: 71 | R26: 0 | S26: 96 | X26: 0
A27: 22 | F27: 0 | G27: 47 | L27: 0 | M27: 72 | R27: 0 | S27: 97 | X27: 0
A28: 23 | F28: 0 | G28: 48 | L28: 0 | M28: 73 | R28: 0 | S28: 98 | X28: 0
A29: 24 | F29: 0 | G29: 49 | L29: 0 | M29: 74 | R29: 0 | S29: 99 | X29: 0
A30: 25 | F30: 0 | G30: 50 | L30: =IF(OR(I30="P",I30="S"),IF(OR(H30="上葉",H30="合葉"),1,0),0) -> 0 | M30: 75 | R30: =IF(OR(O30="P",O30="S"),IF(OR(N30="上葉",N30="合葉"),1,0),0) -> 0 | S30: 100 | X30: =IF(OR(U30="P",U30="S"),IF(OR(T30="上葉",T30="合葉"),1,0),0) -> 0
A31: 小 計 | D31: =SUM(D6:D30) -> 0 | G31: 小 計 | J31: =SUM(J6:J30) -> 0 | M31: 小 計 | P31: =SUM(P6:P30) -> 0 | S31: 小 計 | V31: =SUM(V6:V30) -> 0
A32: 葉たばこ販売手控書 （令和 年産） | W32: 【本人控え】 №2
T33: 出荷包数 | W33: 包
B34: 総代区 | H34: 契約番号 | N34: 氏 名 | T34: 総 重 量 | W34: kg
A36: № | B36: 葉 分 | C36: タイプ | D36: 重 量 | E36: 備 考 | G36: № | H36: 葉 分 | I36: タイプ | J36: 重 量 | K36: 備 考 | M36: № | N36: 葉 分 | O36: タイプ | P36: 重 量 | Q36: 備 考 | S36: № | T36: 葉 分 | U36: タイプ | V36: 重 量 | W36: 備 考
A37: 101 | F37: =IF(OR(C37="P",C37="S"),IF(OR(B37="上葉",B37="合葉"),1,0),0) -> 0 | G37: 126 | L37: =IF(OR(I37="P",I37="S"),IF(OR(H37="上葉",H37="合葉"),1,0),0) -> 0 | M37: 151 | R37: =IF(OR(O37="P",O37="S"),IF(OR(N37="上葉",N37="合葉"),1,0),0) -> 0 | S37: 176 | X37: =IF(OR(U37="P",U37="S"),IF(OR(T37="上葉",T37="合葉"),1,0),0) -> 0
A38: 102 | F38: =IF(OR(C38="P",C38="S"),IF(OR(B38="上葉",B38="合葉"),1,0),0) -> 0 | G38: 127 | L38: =IF(OR(I38="P",I38="S"),IF(OR(H38="上葉",H38="合葉"),1,0),0) -> 0 | M38: 152 | R38: =IF(OR(O38="P",O38="S"),IF(OR(N38="上葉",N38="合葉"),1,0),0) -> 0 | S38: 177 | X38: =IF(OR(U38="P",U38="S"),IF(OR(T38="上葉",T38="合葉"),1,0),0) -> 0
A39: 103 | F39: 0 | G39: 128 | L39: 0 | M39: 153 | R39: 0 | S39: 178 | X39: 0
A40: 104 | F40: 0 | G40: 129 | L40: 0 | M40: 154 | R40: 0 | S40: 179 | X40: 0
A41: 105 | F41: 0 | G41: 130 | L41: 0 | M41: 155 | R41: 0 | S41: 180 | X41: 0
A42: 106 | F42: 0 | G42: 131 | L42: 0 | M42: 156 | R42: 0 | S42: 181 | X42: 0
A43: 107 | F43: 0 | G43: 132 | L43: 0 | M43: 157 | R43: 0 | S43: 182 | X43: 0
A44: 108 | F44: 0 | G44: 133 | L44: 0 | M44: 158 | R44: 0 | S44: 183 | X44: 0
A45: 109 | F45: 0 | G45: 134 | L45: 0 | M45: 159 | R45: 0 | S45: 184 | X45: 0
A46: 110 | F46: 0 | G46: 135 | L46: 0 | M46: 160 | R46: 0 | S46: 185 | X46: 0
A47: 111 | F47: 0 | G47: 136 | L47: 0 | M47: 161 | R47: 0 | S47: 186 | X47: 0
A48: 112 | F48: 0 | G48: 137 | L48: 0 | M48: 162 | R48: 0 | S48: 187 | X48: 0
A49: 113 | F49: 0 | G49: 138 | L49: 0 | M49: 163 | R49: 0 | S49: 188 | X49: 0
A50: 114 | F50: 0 | G50: 139 | L50: 0 | M50: 164 | R50: 0 | S50: 189 | X50: 0
A51: 115 | F51: 0 | G51: 140 | L51: 0 | M51: 165 | R51: 0 | S51: 190 | X51: 0
A52: 116 | F52: 0 | G52: 141 | L52: 0 | M52: 166 | R52: 0 | S52: 191 | X52: 0
A53: 117 | F53: 0 | G53: 142 | L53: 0 | M53: 167 | R53: 0 | S53: 192 | X53: 0
A54: 118 | F54: =IF(OR(C54="P",C54="S"),IF(OR(B54="上葉",B54="合葉"),1,0),0) -> 0 | G54: 143 | L54: =IF(OR(I54="P",I54="S"),IF(OR(H54="上葉",H54="合葉"),1,0),0) -> 0 | M54: 168 | R54: =IF(OR(O54="P",O54="S"),IF(OR(N54="上葉",N54="合葉"),1,0),0) -> 0 | S54: 193 | X54: =IF(OR(U54="P",U54="S"),IF(OR(T54="上葉",T54="合葉"),1,0),0) -> 0
A55: 119 | F55: =IF(OR(C55="P",C55="S"),IF(OR(B55="上葉",B55="合葉"),1,0),0) -> 0 | G55: 144 | L55: =IF(OR(I55="P",I55="S"),IF(OR(H55="上葉",H55="合葉"),1,0),0) -> 0 | M55: 169 | R55: =IF(OR(O55="P",O55="S"),IF(OR(N55="上葉",N55="合葉"),1,0),0) -> 0 | S55: 194 | X55: =IF(OR(U55="P",U55="S"),IF(OR(T55="上葉",T55="合葉"),1,0),0) -> 0
A56: 120 | F56: 0 | G56: 145 | L56: 0 | M56: 170 | R56: 0 | S56: 195 | X56: 0
A57: 121 | F57: 0 | G57: 146 | L57: 0 | M57: 171 | R57: 0 | S57: 196 | X57: 0
A58: 122 | F58: 0 | G58: 147 | L58: 0 | M58: 172 | R58: 0 | S58: 197 | X58: 0
A59: 123 | F59: 0 | G59: 148 | L59: 0 | M59: 173 | R59: 0 | S59: 198 | X59: 0
A60: 124 | F60: 0 | G60: 149 | L60: 0 | M60: 174 | R60: 0 | S60: 199 | X60: 0
A61: 125 | F61: =IF(OR(C61="P",C61="S"),IF(OR(B61="上葉",B61="合葉"),1,0),0) -> 0 | G61: 150 | L61: =IF(OR(I61="P",I61="S"),IF(OR(H61="上葉",H61="合葉"),1,0),0) -> 0 | M61: 175 | R61: =IF(OR(O61="P",O61="S"),IF(OR(N61="上葉",N61="合葉"),1,0),0) -> 0 | S61: 200 | X61: =IF(OR(U61="P",U61="S"),IF(OR(T61="上葉",T61="合葉"),1,0),0) -> 0
A62: 小 計 | D62: =SUM(D37:D61) -> 0 | G62: 小 計 | J62: =SUM(J37:J61) -> 0 | M62: 小 計 | P62: =SUM(P37:P61) -> 0 | S62: 小 計 | V62: =SUM(V37:V61) -> 0

Sheet 手控書_(201-)
A1: 葉たばこ販売手控書 | E1: =はじめに!F22 -> 46001 | H1: 販売月日 | J1: =はじめに!F22 -> 2025-12-10 | W1: 【本人控え】 №3
T2: 出荷包数 | V2: ='手控書_(1-200)'!V2 -> 0 | W2: 包
T3: 総 重 量 | V3: ='手控書_(1-200)'!V3 -> 0 | W3: kg | AD3: =はじめに!F21 -> たばこ | AF3: 総代区 | AH3: 契約番号 | AI3: =はじめに!F19 -> 1234567 | AL3: 氏 名 | AM3: =はじめに!F20 -> 田村 一郎
A5: № | B5: 葉 分 | C5: タイプ | D5: 重 量 | E5: 備 考 | G5: № | H5: 葉 分 | I5: タイプ | J5: 重 量 | K5: 備 考 | M5: № | N5: 葉 分 | O5: タイプ | P5: 重 量 | Q5: 備 考 | S5: № | T5: 葉 分 | U5: タイプ | V5: 重 量 | W5: 備 考
A6: 201 | F6: =IF(OR(C6="P",C6="S"),IF(OR(B6="上葉",B6="合葉"),1,0),0) -> 0 | G6: 226 | L6: =IF(OR(I6="P",I6="S"),IF(OR(H6="上葉",H6="合葉"),1,0),0) -> 0 | M6: 251 | R6: =IF(OR(O6="P",O6="S"),IF(OR(N6="上葉",N6="合葉"),1,0),0) -> 0 | S6: 276 | X6: =IF(OR(U6="P",U6="S"),IF(OR(T6="上葉",T6="合葉"),1,0),0) -> 0
A7: 202 | F7: =IF(OR(C7="P",C7="S"),IF(OR(B7="上葉",B7="合葉"),1,0),0) -> 0 | G7: 227 | L7: =IF(OR(I7="P",I7="S"),IF(OR(H7="上葉",H7="合葉"),1,0),0) -> 0 | M7: 252 | R7: =IF(OR(O7="P",O7="S"),IF(OR(N7="上葉",N7="合葉"),1,0),0) -> 0 | S7: 277 | X7: =IF(OR(U7="P",U7="S"),IF(OR(T7="上葉",T7="合葉"),1,0),0) -> 0
A8: 203 | F8: 0 | G8: 228 | L8: 0 | M8: 253 | R8: 0 | S8: 278 | X8: 0
A9: 204 | F9: 0 | G9: 229 | L9: 0 | M9: 254 | R9: 0 | S9: 279 | X9: 0
A10: 205 | F10: 0 | G10: 230 | L10: 0 | M10: 255 | R10: 0 | S10: 280 | X10: 0
A11: 206 | F11: 0 | G11: 231 | L11: 0 | M11: 256 | R11: 0 | S11: 281 | X11: 0
A12: 207 | F12: 0 | G12: 232 | L12: 0 | M12: 257 | R12: 0 | S12: 282 | X12: 0
A13: 208 | F13: 0 | G13: 233 | L13: 0 | M13: 258 | R13: 0 | S13: 283 | X13: 0
A14: 209 | F14: 0 | G14: 234 | L14: 0 | M14: 259 | R14: 0 | S14: 284 | X14: 0
A15: 210 | F15: 0 | G15: 235 | L15: 0 | M15: 260 | R15: 0 | S15: 285 | X15: 0
A16: 211 | F16: 0 | G16: 236 | L16: 0 | M16: 261 | R16: 0 | S16: 286 | X16: 0
A17: 212 | F17: 0 | G17: 237 | L17: 0 | M17: 262 | R17: 0 | S17: 287 | X17: 0
A18: 213 | F18: 0 | G18: 238 | L18: 0 | M18: 263 | R18: 0 | S18: 288 | X18: 0
A19: 214 | F19: 0 | G19: 239 | L19: 0 | M19: 264 | R19: 0 | S19: 289 | X19: 0
A20: 215 | F20: 0 | G20: 240 | L20: 0 | M20: 265 | R20: 0 | S20: 290 | X20: 0
A21: 216 | F21: 0 | G21: 241 | L21: 0 | M21: 266 | R21: 0 | S21: 291 | X21: 0
A22: 217 | F22: 0 | G22: 242 | L22: 0 | M22: 267 | R22: 0 | S22: 292 | X22: 0
A23: 218 | F23: =IF(OR(C23="P",C23="S"),IF(OR(B23="上葉",B23="合葉"),1,0),0) -> 0 | G23: 243 | L23: =IF(OR(I23="P",I23="S"),IF(OR(H23="上葉",H23="合葉"),1,0),0) -> 0 | M23: 268 | R23: =IF(OR(O23="P",O23="S"),IF(OR(N23="上葉",N23="合葉"),1,0),0) -> 0 | S23: 293 | X23: =IF(OR(U23="P",U23="S"),IF(OR(T23="上葉",T23="合葉"),1,0),0) -> 0
A24: 219 | F24: =IF(OR(C24="P",C24="S"),IF(OR(B24="上葉",B24="合葉"),1,0),0) -> 0 | G24: 244 | L24: =IF(OR(I24="P",I24="S"),IF(OR(H24="上葉",H24="合葉"),1,0),0) -> 0 | M24: 269 | R24: =IF(OR(O24="P",O24="S"),IF(OR(N24="上葉",N24="合葉"),1,0),0) -> 0 | S24: 294 | X24: =IF(OR(U24="P",U24="S"),IF(OR(T24="上葉",T24="合葉"),1,0),0) -> 0
A25: 220 | F25: 0 | G25: 245 | L25: 0 | M25: 270 | R25: 0 | S25: 295 | X25: 0
A26: 221 | F26: 0 | G26: 246 | L26: 0 | M26: 271 | R26: 0 | S26: 296 | X26: 0
A27: 222 | F27: 0 | G27: 247 | L27: 0 | M27: 272 | R27: 0 | S27: 297 | X27: 0
A28: 223 | F28: 0 | G28: 248 | L28: 0 | M28: 273 | R28: 0 | S28: 298 | X28: 0
A29: 224 | F29: 0 | G29: 249 | L29: 0 | M29: 274 | R29: 0 | S29: 299 | X29: 0
A30: 225 | F30: =IF(OR(C30="P",C30="S"),IF(OR(B30="上葉",B30="合葉"),1,0),0) -> 0 | G30: 250 | L30: =IF(OR(I30="P",I30="S"),IF(OR(H30="上葉",H30="合葉"),1,0),0) -> 0 | M30: 275 | R30: =IF(OR(O30="P",O30="S"),IF(OR(N30="上葉",N30="合葉"),1,0),0) -> 0 | S30: 300 | X30: =IF(OR(U30="P",U30="S"),IF(OR(T30="上葉",T30="合葉"),1,0),0) -> 0
A31: 小 計 | D31: =SUM(D6:D30) -> 0 | G31: 小 計 | J31: =SUM(J6:J30) -> 0 | M31: 小 計 | P31: =SUM(P6:P30) -> 0 | S31: 小 計 | V31: =SUM(V6:V30) -> 0
A32: 葉たばこ販売手控書 （令和 年産） | W32: 【本人控え】 №4
T33: 出荷包数 | W33: 包
B34: 総代区 | H34: 契約番号 | N34: 氏 名 | T34: 総 重 量 | W34: kg
A36: № | B36: 葉 分 | C36: タイプ | D36: 重 量 | E36: 備 考 | G36: № | H36: 葉 分 | I36: タイプ | J36: 重 量 | K36: 備 考 | M36: № | N36: 葉 分 | O36: タイプ | P36: 重 量 | Q36: 備 考 | S36: № | T36: 葉 分 | U36: タイプ | V36: 重 量 | W36: 備 考
A37: 301 | F37: =IF(OR(C37="P",C37="S"),IF(OR(B37="上葉",B37="合葉"),1,0),0) -> 0 | G37: 326 | L37: =IF(OR(I37="P",I37="S"),IF(OR(H37="上葉",H37="合葉"),1,0),0) -> 0 | M37: 351 | R37: =IF(OR(O37="P",O37="S"),IF(OR(N37="上葉",N37="合葉"),1,0),0) -> 0 | S37: 376 | X37: =IF(OR(U37="P",U37="S"),IF(OR(T37="上葉",T37="合葉"),1,0),0) -> 0
A38: 302 | F38: =IF(OR(C38="P",C38="S"),IF(OR(B38="上葉",B38="合葉"),1,0),0) -> 0 | G38: 327 | L38: =IF(OR(I38="P",I38="S"),IF(OR(H38="上葉",H38="合葉"),1,0),0) -> 0 | M38: 352 | R38: =IF(OR(O38="P",O38="S"),IF(OR(N38="上葉",N38="合葉"),1,0),0) -> 0 | S38: 377 | X38: =IF(OR(U38="P",U38="S"),IF(OR(T38="上葉",T38="合葉"),1,0),0) -> 0
A39: 303 | F39: 0 | G39: 328 | L39: 0 | M39: 353 | R39: 0 | S39: 378 | X39: 0
A40: 304 | F40: 0 | G40: 329 | L40: 0 | M40: 354 | R40: 0 | S40: 379 | X40: 0
A41: 305 | F41: 0 | G41: 330 | L41: 0 | M41: 355 | R41: 0 | S41: 380 | X41: 0
A42: 306 | F42: 0 | G42: 331 | L42: 0 | M42: 356 | R42: 0 | S42: 381 | X42: 0
A43: 307 | F43: 0 | G43: 332 | L43: 0 | M43: 357 | R43: 0 | S43: 382 | X43: 0
A44: 308 | F44: 0 | G44: 333 | L44: 0 | M44: 358 | R44: 0 | S44: 383 | X44: 0
A45: 309 | F45: 0 | G45: 334 | L45: 0 | M45: 359 | R45: 0 | S45: 384 | X45: 0
A46: 310 | F46: 0 | G46: 335 | L46: 0 | M46: 360 | R46: 0 | S46: 385 | X46: 0
A47: 311 | F47: 0 | G47: 336 | L47: 0 | M47: 361 | R47: 0 | S47: 386 | X47: 0
A48: 312 | F48: 0 | G48: 337 | L48: 0 | M48: 362 | R48: 0 | S48: 387 | X48: 0
A49: 313 | F49: 0 | G49: 338 | L49: 0 | M49: 363 | R49: 0 | S49: 388 | X49: 0
A50: 314 | F50: 0 | G50: 339 | L50: 0 | M50: 364 | R50: 0 | S50: 389 | X50: 0
A51: 315 | F51: 0 | G51: 340 | L51: 0 | M51: 365 | R51: 0 | S51: 390 | X51: 0
A52: 316 | F52: 0 | G52: 341 | L52: 0 | M52: 366 | R52: 0 | S52: 391 | X52: 0
A53: 317 | F53: 0 | G53: 342 | L53: 0 | M53: 367 | R53: 0 | S53: 392 | X53: 0
A54: 318 | F54: =IF(OR(C54="P",C54="S"),IF(OR(B54="上葉",B54="合葉"),1,0),0) -> 0 | G54: 343 | L54: =IF(OR(I54="P",I54="S"),IF(OR(H54="上葉",H54="合葉"),1,0),0) -> 0 | M54: 368 | R54: =IF(OR(O54="P",O54="S"),IF(OR(N54="上葉",N54="合葉"),1,0),0) -> 0 | S54: 393 | X54: =IF(OR(U54="P",U54="S"),IF(OR(T54="上葉",T54="合葉"),1,0),0) -> 0
A55: 319 | F55: =IF(OR(C55="P",C55="S"),IF(OR(B55="上葉",B55="合葉"),1,0),0) -> 0 | G55: 344 | L55: =IF(OR(I55="P",I55="S"),IF(OR(H55="上葉",H55="合葉"),1,0),0) -> 0 | M55: 369 | R55: =IF(OR(O55="P",O55="S"),IF(OR(N55="上葉",N55="合葉"),1,0),0) -> 0 | S55: 394 | X55: =IF(OR(U55="P",U55="S"),IF(OR(T55="上葉",T55="合葉"),1,0),0) -> 0
A56: 320 | F56: 0 | G56: 345 | L56: 0 | M56: 370 | R56: 0 | S56: 395 | X56: 0
A57: 321 | F57: 0 | G57: 346 | L57: 0 | M57: 371 | R57: 0 | S57: 396 | X57: 0
A58: 322 | F58: 0 | G58: 347 | L58: 0 | M58: 372 | R58: 0 | S58: 397 | X58: 0
A59: 323 | F59: 0 | G59: 348 | L59: 0 | M59: 373 | R59: 0 | S59: 398 | X59: 0
A60: 324 | F60: 0 | G60: 349 | L60: 0 | M60: 374 | R60: 0 | S60: 399 | X60: 0
A61: 325 | F61: =IF(OR(C61="P",C61="S"),IF(OR(B61="上葉",B61="合葉"),1,0),0) -> 0 | G61: 350 | L61: =IF(OR(I61="P",I61="S"),IF(OR(H61="上葉",H61="合葉"),1,0),0) -> 0 | M61: 375 | R61: =IF(OR(O61="P",O61="S"),IF(OR(N61="上葉",N61="合葉"),1,0),0) -> 0 | S61: 400 | X61: =IF(OR(U61="P",U61="S"),IF(OR(T61="上葉",T61="合葉"),1,0),0) -> 0
A62: 小 計 | D62: =SUM(D37:D61) -> 0 | G62: 小 計 | J62: =SUM(J37:J61) -> 0 | M62: 小 計 | P62: =SUM(P37:P61) -> 0 | S62: 小 計 | V62: =SUM(V37:V61) -> 0

Sheet リンクシート (hidden)
A1: ='手控書_(1-200)'!A5 -> № | B1: ='手控書_(1-200)'!B5 -> 葉 分 | C1: ='手控書_(1-200)'!C5 -> タイプ | D1: ='手控書_(1-200)'!D5 -> 重 量
A2: ='手控書_(1-200)'!A6 -> 1 | B2: ='手控書_(1-200)'!B6 -> 0 | C2: ='手控書_(1-200)'!C6 -> 0 | D2: ='手控書_(1-200)'!D6 -> 0 | E2: =IF(COUNTIF(B2:D2,0)=3,0,IF(COUNTIF(B2:D2,"<> 0")=3,0,1)) -> 0
A3: ='手控書_(1-200)'!A7 -> 2 | B3: ='手控書_(1-200)'!B7 -> 0 | C3: ='手控書_(1-200)'!C7 -> 0 | D3: ='手控書_(1-200)'!D7 -> 0 | E3: =IF(COUNTIF(B3:D3,0)=3,0,IF(COUNTIF(B3:D3,"<> 0")=3,0,1)) -> 0
A4: ='手控書_(1-200)'!A8 -> 3 | B4: ='手控書_(1-200)'!B8 -> 0 | C4: ='手控書_(1-200)'!C8 -> 0 | D4: ='手控書_(1-200)'!D8 -> 0 | E4: 0
A5: ='手控書_(1-200)'!A9 -> 4 | B5: ='手控書_(1-200)'!B9 -> 0 | C5: ='手控書_(1-200)'!C9 -> 0 | D5: ='手控書_(1-200)'!D9 -> 0 | E5: 0
A6: ='手控書_(1-200)'!A10 -> 5 | B6: ='手控書_(1-200)'!B10 -> 0 | C6: ='手控書_(1-200)'!C10 -> 0 | D6: ='手控書_(1-200)'!D10 -> 0 | E6: 0
A7: ='手控書_(1-200)'!A11 -> 6 | B7: ='手控書_(1-200)'!B11 -> 0 | C7: ='手控書_(1-200)'!C11 -> 0 | D7: ='手控書_(1-200)'!D11 -> 0 | E7: 0
A8: ='手控書_(1-200)'!A12 -> 7 | B8: ='手控書_(1-200)'!B12 -> 0 | C8: ='手控書_(1-200)'!C12 -> 0 | D8: ='手控書_(1-200)'!D12 -> 0 | E8: 0
A9: ='手控書_(1-200)'!A13 -> 8 | B9: ='手控書_(1-200)'!B13 -> 0 | C9: ='手控書_(1-200)'!C13 -> 0 | D9: ='手控書_(1-200)'!D13 -> 0 | E9: 0
A10: ='手控書_(1-200)'!A14 -> 9 | B10: ='手控書_(1-200)'!B14 -> 0 | C10: ='手控書_(1-200)'!C14 -> 0 | D10: ='手控書_(1-200)'!D14 -> 0 | E10: 0
A11: ='手控書_(1-200)'!A15 -> 10 | B11: ='手控書_(1-200)'!B15 -> 0 | C11: ='手控書_(1-200)'!C15 -> 0 | D11: ='手控書_(1-200)'!D15 -> 0 | E11: 0
A12: ='手控書_(1-200)'!A16 -> 11 | B12: ='手控書_(1-200)'!B16 -> 0 | C12: ='手控書_(1-200)'!C16 -> 0 | D12: ='手控書_(1-200)'!D16 -> 0 | E12: 0
A13: ='手控書_(1-200)'!A17 -> 12 | B13: ='手控書_(1-200)'!B17 -> 0 | C13: ='手控書_(1-200)'!C17 -> 0 | D13: ='手控書_(1-200)'!D17 -> 0 | E13: 0
A14: ='手控書_(1-200)'!A18 -> 13 | B14: ='手控書_(1-200)'!B18 -> 0 | C14: ='手控書_(1-200)'!C18 -> 0 | D14: ='手控書_(1-200)'!D18 -> 0 | E14: 0
A15: ='手控書_(1-200)'!A19 -> 14 | B15: ='手控書_(1-200)'!B19 -> 0 | C15: ='手控書_(1-200)'!C19 -> 0 | D15: ='手控書_(1-200)'!D19 -> 0 | E15: 0
A16: ='手控書_(1-200)'!A20 -> 15 | B16: ='手控書_(1-200)'!B20 -> 0 | C16: ='手控書_(1-200)'!C20 -> 0 | D16: ='手控書_(1-200)'!D20 -> 0 | E16: 0
A17: ='手控書_(1-200)'!A21 -> 16 | B17: ='手控書_(1-200)'!B21 -> 0 | C17: ='手控書_(1-200)'!C21 -> 0 | D17: ='手控書_(1-200)'!D21 -> 0 | E17: 0
A18: ='手控書_(1-200)'!A22 -> 17 | B18: ='手控書_(1-200)'!B22 -> 0 | C18: ='手控書_(1-200)'!C22 -> 0 | D18: ='手控書_(1-200)'!D22 -> 0 | E18: 0
A19: ='手控書_(1-200)'!A23 -> 18 | B19: ='手控書_(1-200)'!B23 -> 0 | C19: ='手控書_(1-200)'!C23 -> 0 | D19: ='手控書_(1-200)'!D23 -> 0 | E19: 0
A20: ='手控書_(1-200)'!A24 -> 19 | B20: ='手控書_(1-200)'!B24 -> 0 | C20: ='手控書_(1-200)'!C24 -> 0 | D20: ='手控書_(1-200)'!D24 -> 0 | E20: 0
A21: ='手控書_(1-200)'!A25 -> 20 | B21: ='手控書_(1-200)'!B25 -> 0 | C21: ='手控書_(1-200)'!C25 -> 0 | D21: ='手控書_(1-200)'!D25 -> 0 | E21: 0
A22: ='手控書_(1-200)'!A26 -> 21 | B22: ='手控書_(1-200)'!B26 -> 0 | C22: ='手控書_(1-200)'!C26 -> 0 | D22: ='手控書_(1-200)'!D26 -> 0 | E22: 0
A23: ='手控書_(1-200)'!A27 -> 22 | B23: ='手控書_(1-200)'!B27 -> 0 | C23: ='手控書_(1-200)'!C27 -> 0 | D23: ='手控書_(1-200)'!D27 -> 0 | E23: 0
A24: ='手控書_(1-200)'!A28 -> 23 | B24: ='手控書_(1-200)'!B28 -> 0 | C24: ='手控書_(1-200)'!C28 -> 0 | D24: ='手控書_(1-200)'!D28 -> 0 | E24: 0
A25: ='手控書_(1-200)'!A29 -> 24 | B25: ='手控書_(1-200)'!B29 -> 0 | C25: ='手控書_(1-200)'!C29 -> 0 | D25: ='手控書_(1-200)'!D29 -> 0 | E25: 0
A26: ='手控書_(1-200)'!A30 -> 25 | B26: ='手控書_(1-200)'!B30 -> 0 | C26: ='手控書_(1-200)'!C30 -> 0 | D26: ='手控書_(1-200)'!D30 -> 0 | E26: 0
A27: ='手控書_(1-200)'!G6 -> 26 | B27: ='手控書_(1-200)'!H6 -> 0 | C27: ='手控書_(1-200)'!I6 -> 0 | D27: ='手控書_(1-200)'!J6 -> 0 | E27: 0
A28: ='手控書_(1-200)'!G7 -> 27 | B28: ='手控書_(1-200)'!H7 -> 0 | C28: ='手控書_(1-200)'!I7 -> 0 | D28: ='手控書_(1-200)'!J7 -> 0 | E28: 0
A29: ='手控書_(1-200)'!G8 -> 28 | B29: ='手控書_(1-200)'!H8 -> 0 | C29: ='手控書_(1-200)'!I8 -> 0 | D29: ='手控書_(1-200)'!J8 -> 0 | E29: 0
A30: ='手控書_(1-200)'!G9 -> 29 | B30: ='手控書_(1-200)'!H9 -> 0 | C30: ='手控書_(1-200)'!I9 -> 0 | D30: ='手控書_(1-200)'!J9 -> 0 | E30: 0
A31: ='手控書_(1-200)'!G10 -> 30 | B31: ='手控書_(1-200)'!H10 -> 0 | C31: ='手控書_(1-200)'!I10 -> 0 | D31: ='手控書_(1-200)'!J10 -> 0 | E31: 0
A32: ='手控書_(1-200)'!G11 -> 31 | B32: ='手控書_(1-200)'!H11 -> 0 | C32: ='手控書_(1-200)'!I11 -> 0 | D32: ='手控書_(1-200)'!J11 -> 0 | E32: 0
A33: ='手控書_(1-200)'!G12 -> 32 | B33: ='手控書_(1-200)'!H12 -> 0 | C33: ='手控書_(1-200)'!I12 -> 0 | D33: ='手控書_(1-200)'!J12 -> 0 | E33: 0
A34: ='手控書_(1-200)'!G13 -> 33 | B34: ='手控書_(1-200)'!H13 -> 0 | C34: ='手控書_(1-200)'!I13 -> 0 | D34: ='手控書_(1-200)'!J13 -> 0 | E34: 0
A35: ='手控書_(1-200)'!G14 -> 34 | B35: ='手控書_(1-200)'!H14 -> 0 | C35: ='手控書_(1-200)'!I14 -> 0 | D35: ='手控書_(1-200)'!J14 -> 0 | E35: 0
A36: ='手控書_(1-200)'!G15 -> 35 | B36: ='手控書_(1-200)'!H15 -> 0 | C36: ='手控書_(1-200)'!I15 -> 0 | D36: ='手控書_(1-200)'!J15 -> 0 | E36: 0
A37: ='手控書_(1-200)'!G16 -> 36 | B37: ='手控書_(1-200)'!H16 -> 0 | C37: ='手控書_(1-200)'!I16 -> 0 | D37: ='手控書_(1-200)'!J16 -> 0 | E37: 0
A38: ='手控書_(1-200)'!G17 -> 37 | B38: ='手控書_(1-200)'!H17 -> 0 | C38: ='手控書_(1-200)'!I17 -> 0 | D38: ='手控書_(1-200)'!J17 -> 0 | E38: 0
A39: ='手控書_(1-200)'!G18 -> 38 | B39: ='手控書_(1-200)'!H18 -> 0 | C39: ='手控書_(1-200)'!I18 -> 0 | D39: ='手控書_(1-200)'!J18 -> 0 | E39: 0
A40: ='手控書_(1-200)'!G19 -> 39 | B40: ='手控書_(1-200)'!H19 -> 0 | C40: ='手控書_(1-200)'!I19 -> 0 | D40: ='手控書_(1-200)'!J19 -> 0 | E40: 0
A41: ='手控書_(1-200)'!G20 -> 40 | B41: ='手控書_(1-200)'!H20 -> 0 | C41: ='手控書_(1-200)'!I20 -> 0 | D41: ='手控書_(1-200)'!J20 -> 0 | E41: 0
A42: ='手控書_(1-200)'!G21 -> 41 | B42: ='手控書_(1-200)'!H21 -> 0 | C42: ='手控書_(1-200)'!I21 -> 0 | D42: ='手控書_(1-200)'!J21 -> 0 | E42: 0
A43: ='手控書_(1-200)'!G22 -> 42 | B43: ='手控書_(1-200)'!H22 -> 0 | C43: ='手控書_(1-200)'!I22 -> 0 | D43: ='手控書_(1-200)'!J22 -> 0 | E43: 0
A44: ='手控書_(1-200)'!G23 -> 43 | B44: ='手控書_(1-200)'!H23 -> 0 | C44: ='手控書_(1-200)'!I23 -> 0 | D44: ='手控書_(1-200)'!J23 -> 0 | E44: 0
A45: ='手控書_(1-200)'!G24 -> 44 | B45: ='手控書_(1-200)'!H24 -> 0 | C45: ='手控書_(1-200)'!I24 -> 0 | D45: ='手控書_(1-200)'!J24 -> 0 | E45: 0
A46: ='手控書_(1-200)'!G25 -> 45 | B46: ='手控書_(1-200)'!H25 -> 0 | C46: ='手控書_(1-200)'!I25 -> 0 | D46: ='手控書_(1-200)'!J25 -> 0 | E46: 0
A47: ='手控書_(1-200)'!G26 -> 46 | B47: ='手控書_(1-200)'!H26 -> 0 | C47: ='手控書_(1-200)'!I26 -> 0 | D47: ='手控書_(1-200)'!J26 -> 0 | E47: 0
A48: ='手控書_(1-200)'!G27 -> 47 | B48: ='手控書_(1-200)'!H27 -> 0 | C48: ='手控書_(1-200)'!I27 -> 0 | D48: ='手控書_(1-200)'!J27 -> 0 | E48: 0
A49: ='手控書_(1-200)'!G28 -> 48 | B49: ='手控書_(1-200)'!H28 -> 0 | C49: ='手控書_(1-200)'!I28 -> 0 | D49: ='手控書_(1-200)'!J28 -> 0 | E49: 0
A50: ='手控書_(1-200)'!G29 -> 49 | B50: ='手控書_(1-200)'!H29 -> 0 | C50: ='手控書_(1-200)'!I29 -> 0 | D50: ='手控書_(1-200)'!J29 -> 0 | E50: 0
A51: ='手控書_(1-200)'!G30 -> 50 | B51: ='手控書_(1-200)'!H30 -> 0 | C51: ='手控書_(1-200)'!I30 -> 0 | D51: ='手控書_(1-200)'!J30 -> 0 | E51: 0
A52: ='手控書_(1-200)'!M6 -> 51 | B52: ='手控書_(1-200)'!N6 -> 0 | C52: ='手控書_(1-200)'!O6 -> 0 | D52: ='手控書_(1-200)'!P6 -> 0 | E52: 0
A53: ='手控書_(1-200)'!M7 -> 52 | B53: ='手控書_(1-200)'!N7 -> 0 | C53: ='手控書_(1-200)'!O7 -> 0 | D53: ='手控書_(1-200)'!P7 -> 0 | E53: 0
A54: ='手控書_(1-200)'!M8 -> 53 | B54: ='手控書_(1-200)'!N8 -> 0 | C54: ='手控書_(1-200)'!O8 -> 0 | D54: ='手控書_(1-200)'!P8 -> 0 | E54: 0
A55: ='手控書_(1-200)'!M9 -> 54 | B55: ='手控書_(1-200)'!N9 -> 0 | C55: ='手控書_(1-200)'!O9 -> 0 | D55: ='手控書_(1-200)'!P9 -> 0 | E55: 0
A56: ='手控書_(1-200)'!M10 -> 55 | B56: ='手控書_(1-200)'!N10 -> 0 | C56: ='手控書_(1-200)'!O10 -> 0 | D56: ='手控書_(1-200)'!P10 -> 0 | E56: 0
A57: ='手控書_(1-200)'!M11 -> 56 | B57: ='手控書_(1-200)'!N11 -> 0 | C57: ='手控書_(1-200)'!O11 -> 0 | D57: ='手控書_(1-200)'!P11 -> 0 | E57: 0
A58: ='手控書_(1-200)'!M12 -> 57 | B58: ='手控書_(1-200)'!N12 -> 0 | C58: ='手控書_(1-200)'!O12 -> 0 | D58: ='手控書_(1-200)'!P12 -> 0 | E58: 0
A59: ='手控書_(1-200)'!M13 -> 58 | B59: ='手控書_(1-200)'!N13 -> 0 | C59: ='手控書_(1-200)'!O13 -> 0 | D59: ='手控書_(1-200)'!P13 -> 0 | E59: 0
A60: ='手控書_(1-200)'!M14 -> 59 | B60: ='手控書_(1-200)'!N14 -> 0 | C60: ='手控書_(1-200)'!O14 -> 0 | D60: ='手控書_(1-200)'!P14 -> 0 | E60: 0
A61: ='手控書_(1-200)'!M15 -> 60 | B61: ='手控書_(1-200)'!N15 -> 0 | C61: ='手控書_(1-200)'!O15 -> 0 | D61: ='手控書_(1-200)'!P15 -> 0 | E61: 0
A62: ='手控書_(1-200)'!M16 -> 61 | B62: ='手控書_(1-200)'!N16 -> 0 | C62: ='手控書_(1-200)'!O16 -> 0 | D62: ='手控書_(1-200)'!P16 -> 0 | E62: 0
A63: ='手控書_(1-200)'!M17 -> 62 | B63: ='手控書_(1-200)'!N17 -> 0 | C63: ='手控書_(1-200)'!O17 -> 0 | D63: ='手控書_(1-200)'!P17 -> 0 | E63: 0
A64: ='手控書_(1-200)'!M18 -> 63 | B64: ='手控書_(1-200)'!N18 -> 0 | C64: ='手控書_(1-200)'!O18 -> 0 | D64: ='手控書_(1-200)'!P18 -> 0 | E64: 0
A65: ='手控書_(1-200)'!M19 -> 64 | B65: ='手控書_(1-200)'!N19 -> 0 | C65: ='手控書_(1-200)'!O19 -> 0 | D65: ='手控書_(1-200)'!P19 -> 0 | E65: 0
A66: ='手控書_(1-200)'!M20 -> 65 | B66: ='手控書_(1-200)'!N20 -> 0 | C66: ='手控書_(1-200)'!O20 -> 0 | D66: ='手控書_(1-200)'!P20 -> 0 | E66: 0
A67: ='手控書_(1-200)'!M21 -> 66 | B67: ='手控書_(1-200)'!N21 -> 0 | C67: ='手控書_(1-200)'!O21 -> 0 | D67: ='手控書_(1-200)'!P21 -> 0 | E67: =IF(COUNTIF(B67:D67,0)=3,0,IF(COUNTIF(B67:D67,"<> 0")=3,0,1)) -> 0
A68: ='手控書_(1-200)'!M22 -> 67 | B68: ='手控書_(1-200)'!N22 -> 0 | C68: ='手控書_(1-200)'!O22 -> 0 | D68: ='手控書_(1-200)'!P22 -> 0 | E68: 0
A69: ='手控書_(1-200)'!M23 -> 68 | B69: ='手控書_(1-200)'!N23 -> 0 | C69: ='手控書_(1-200)'!O23 -> 0 | D69: ='手控書_(1-200)'!P23 -> 0 | E69: 0
A70: ='手控書_(1-200)'!M24 -> 69 | B70: ='手控書_(1-200)'!N24 -> 0 | C70: ='手控書_(1-200)'!O24 -> 0 | D70: ='手控書_(1-200)'!P24 -> 0 | E70: 0
A71: ='手控書_(1-200)'!M25 -> 70 | B71: ='手控書_(1-200)'!N25 -> 0 | C71: ='手控書_(1-200)'!O25 -> 0 | D71: ='手控書_(1-200)'!P25 -> 0 | E71: 0
A72: ='手控書_(1-200)'!M26 -> 71 | B72: ='手控書_(1-200)'!N26 -> 0 | C72: ='手控書_(1-200)'!O26 -> 0 | D72: ='手控書_(1-200)'!P26 -> 0 | E72: 0
A73: ='手控書_(1-200)'!M27 -> 72 | B73: ='手控書_(1-200)'!N27 -> 0 | C73: ='手控書_(1-200)'!O27 -> 0 | D73: ='手控書_(1-200)'!P27 -> 0 | E73: 0
A74: ='手控書_(1-200)'!M28 -> 73 | B74: ='手控書_(1-200)'!N28 -> 0 | C74: ='手控書_(1-200)'!O28 -> 0 | D74: ='手控書_(1-200)'!P28 -> 0 | E74: 0
A75: ='手控書_(1-200)'!M29 -> 74 | B75: ='手控書_(1-200)'!N29 -> 0 | C75: ='手控書_(1-200)'!O29 -> 0 | D75: ='手控書_(1-200)'!P29 -> 0 | E75: 0
A76: ='手控書_(1-200)'!M30 -> 75 | B76: ='手控書_(1-200)'!N30 -> 0 | C76: ='手控書_(1-200)'!O30 -> 0 | D76: ='手控書_(1-200)'!P30 -> 0 | E76: 0
A77: ='手控書_(1-200)'!S6 -> 76 | B77: ='手控書_(1-200)'!T6 -> 0 | C77: ='手控書_(1-200)'!U6 -> 0 | D77: ='手控書_(1-200)'!V6 -> 0 | E77: 0
A78: ='手控書_(1-200)'!S7 -> 77 | B78: ='手控書_(1-200)'!T7 -> 0 | C78: ='手控書_(1-200)'!U7 -> 0 | D78: ='手控書_(1-200)'!V7 -> 0 | E78: 0
A79: ='手控書_(1-200)'!S8 -> 78 | B79: ='手控書_(1-200)'!T8 -> 0 | C79: ='手控書_(1-200)'!U8 -> 0 | D79: ='手控書_(1-200)'!V8 -> 0 | E79: 0
A80: ='手控書_(1-200)'!S9 -> 79 | B80: ='手控書_(1-200)'!T9 -> 0 | C80: ='手控書_(1-200)'!U9 -> 0 | D80: ='手控書_(1-200)'!V9 -> 0 | E80: 0
A81: ='手控書_(1-200)'!S10 -> 80 | B81: ='手控書_(1-200)'!T10 -> 0 | C81: ='手控書_(1-200)'!U10 -> 0 | D81: ='手控書_(1-200)'!V10 -> 0 | E81: 0
A82: ='手控書_(1-200)'!S11 -> 81 | B82: ='手控書_(1-200)'!T11 -> 0 | C82: ='手控書_(1-200)'!U11 -> 0 | D82: ='手控書_(1-200)'!V11 -> 0 | E82: 0
A83: ='手控書_(1-200)'!S12 -> 82 | B83: ='手控書_(1-200)'!T12 -> 0 | C83: ='手控書_(1-200)'!U12 -> 0 | D83: ='手控書_(1-200)'!V12 -> 0 | E83: 0
A84: ='手控書_(1-200)'!S13 -> 83 | B84: ='手控書_(1-200)'!T13 -> 0 | C84: ='手控書_(1-200)'!U13 -> 0 | D84: ='手控書_(1-200)'!V13 -> 0 | E84: 0
A85: ='手控書_(1-200)'!S14 -> 84 | B85: ='手控書_(1-200)'!T14 -> 0 | C85: ='手控書_(1-200)'!U14 -> 0 | D85: ='手控書_(1-200)'!V14 -> 0 | E85: 0
A86: ='手控書_(1-200)'!S15 -> 85 | B86: ='手控書_(1-200)'!T15 -> 0 | C86: ='手控書_(1-200)'!U15 -> 0 | D86: ='手控書_(1-200)'!V15 -> 0 | E86: 0
A87: ='手控書_(1-200)'!S16 -> 86 | B87: ='手控書_(1-200)'!T16 -> 0 | C87: ='手控書_(1-200)'!U16 -> 0 | D87: ='手控書_(1-200)'!V16 -> 0 | E87: 0
A88: ='手控書_(1-200)'!S17 -> 87 | B88: ='手控書_(1-200)'!T17 -> 0 | C88: ='手控書_(1-200)'!U17 -> 0 | D88: ='手控書_(1-200)'!V17 -> 0 | E88: 0
A89: ='手控書_(1-200)'!S18 -> 88 | B89: ='手控書_(1-200)'!T18 -> 0 | C89: ='手控書_(1-200)'!U18 -> 0 | D89: ='手控書_(1-200)'!V18 -> 0 | E89: 0
A90: ='手控書_(1-200)'!S19 -> 89 | B90: ='手控書_(1-200)'!T19 -> 0 | C90: ='手控書_(1-200)'!U19 -> 0 | D90: ='手控書_(1-200)'!V19 -> 0 | E90: 0
A91: ='手控書_(1-200)'!S20 -> 90 | B91: ='手控書_(1-200)'!T20 -> 0 | C91: ='手控書_(1-200)'!U20 -> 0 | D91: ='手控書_(1-200)'!V20 -> 0 | E91: 0
A92: ='手控書_(1-200)'!S21 -> 91 | B92: ='手控書_(1-200)'!T21 -> 0 | C92: ='手控書_(1-200)'!U21 -> 0 | D92: ='手控書_(1-200)'!V21 -> 0 | E92: 0
A93: ='手控書_(1-200)'!S22 -> 92 | B93: ='手控書_(1-200)'!T22 -> 0 | C93: ='手控書_(1-200)'!U22 -> 0 | D93: ='手控書_(1-200)'!V22 -> 0 | E93: 0
A94: ='手控書_(1-200)'!S23 -> 93 | B94: ='手控書_(1-200)'!T23 -> 0 | C94: ='手控書_(1-200)'!U23 -> 0 | D94: ='手控書_(1-200)'!V23 -> 0 | E94: 0
A95: ='手控書_(1-200)'!S24 -> 94 | B95: ='手控書_(1-200)'!T24 -> 0 | C95: ='手控書_(1-200)'!U24 -> 0 | D95: ='手控書_(1-200)'!V24 -> 0 | E95: 0
A96: ='手控書_(1-200)'!S25 -> 95 | B96: ='手控書_(1-200)'!T25 -> 0 | C96: ='手控書_(1-200)'!U25 -> 0 | D96: ='手控書_(1-200)'!V25 -> 0 | E96: 0
A97: ='手控書_(1-200)'!S26 -> 96 | B97: ='手控書_(1-200)'!T26 -> 0 | C97: ='手控書_(1-200)'!U26 -> 0 | D97: ='手控書_(1-200)'!V26 -> 0 | E97: 0
A98: ='手控書_(1-200)'!S27 -> 97 | B98: ='手控書_(1-200)'!T27 -> 0 | C98: ='手控書_(1-200)'!U27 -> 0 | D98: ='手控書_(1-200)'!V27 -> 0 | E98: 0
A99: ='手控書_(1-200)'!S28 -> 98 | B99: ='手控書_(1-200)'!T28 -> 0 | C99: ='手控書_(1-200)'!U28 -> 0 | D99: ='手控書_(1-200)'!V28 -> 0 | E99: 0
A100: ='手控書_(1-200)'!S29 -> 99 | B100: ='手控書_(1-200)'!T29 -> 0 | C100: ='手控書_(1-200)'!U29 -> 0 | D100: ='手控書_(1-200)'!V29 -> 0 | E100: 0
A101: ='手控書_(1-200)'!S30 -> 100 | B101: ='手控書_(1-200)'!T30 -> 0 | C101: ='手控書_(1-200)'!U30 -> 0 | D101: ='手控書_(1-200)'!V30 -> 0 | E101: 0
A102: ='手控書_(1-200)'!A37 -> 101 | B102: ='手控書_(1-200)'!B37 -> 0 | C102: ='手控書_(1-200)'!C37 -> 0 | D102: ='手控書_(1-200)'!D37 -> 0 | E102: 0
A103: ='手控書_(1-200)'!A38 -> 102 | B103: ='手控書_(1-200)'!B38 -> 0 | C103: ='手控書_(1-200)'!C38 -> 0 | D103: ='手控書_(1-200)'!D38 -> 0 | E103: 0
A104: ='手控書_(1-200)'!A39 -> 103 | B104: ='手控書_(1-200)'!B39 -> 0 | C104: ='手控書_(1-200)'!C39 -> 0 | D104: ='手控書_(1-200)'!D39 -> 0 | E104: 0
A105: ='手控書_(1-200)'!A40 -> 104 | B105: ='手控書_(1-200)'!B40 -> 0 | C105: ='手控書_(1-200)'!C40 -> 0 | D105: ='手控書_(1-200)'!D40 -> 0 | E105: 0
A106: ='手控書_(1-200)'!A41 -> 105 | B106: ='手控書_(1-200)'!B41 -> 0 | C106: ='手控書_(1-200)'!C41 -> 0 | D106: ='手控書_(1-200)'!D41 -> 0 | E106: 0
A107: ='手控書_(1-200)'!A42 -> 106 | B107: ='手控書_(1-200)'!B42 -> 0 | C107: ='手控書_(1-200)'!C42 -> 0 | D107: ='手控書_(1-200)'!D42 -> 0 | E107: 0
A108: ='手控書_(1-200)'!A43 -> 107 | B108: ='手控書_(1-200)'!B43 -> 0 | C108: ='手控書_(1-200)'!C43 -> 0 | D108: ='手控書_(1-200)'!D43 -> 0 | E108: 0
A109: ='手控書_(1-200)'!A44 -> 108 | B109: ='手控書_(1-200)'!B44 -> 0 | C109: ='手控書_(1-200)'!C44 -> 0 | D109: ='手控書_(1-200)'!D44 -> 0 | E109: 0
A110: ='手控書_(1-200)'!A45 -> 109 | B110: ='手控書_(1-200)'!B45 -> 0 | C110: ='手控書_(1-200)'!C45 -> 0 | D110: ='手控書_(1-200)'!D45 -> 0 | E110: 0
A111: ='手控書_(1-200)'!A46 -> 110 | B111: ='手控書_(1-200)'!B46 -> 0 | C111: ='手控書_(1-200)'!C46 -> 0 | D111: ='手控書_(1-200)'!D46 -> 0 | E111: 0
A112: ='手控書_(1-200)'!A47 -> 111 | B112: ='手控書_(1-200)'!B47 -> 0 | C112: ='手控書_(1-200)'!C47 -> 0 | D112: ='手控書_(1-200)'!D47 -> 0 | E112: 0
A113: ='手控書_(1-200)'!A48 -> 112 | B113: ='手控書_(1-200)'!B48 -> 0 | C113: ='手控書_(1-200)'!C48 -> 0 | D113: ='手控書_(1-200)'!D48 -> 0 | E113: 0
A114: ='手控書_(1-200)'!A49 -> 113 | B114: ='手控書_(1-200)'!B49 -> 0 | C114: ='手控書_(1-200)'!C49 -> 0 | D114: ='手控書_(1-200)'!D49 -> 0 | E114: 0
A115: ='手控書_(1-200)'!A50 -> 114 | B115: ='手控書_(1-200)'!B50 -> 0 | C115: ='手控書_(1-200)'!C50 -> 0 | D115: ='手控書_(1-200)'!D50 -> 0 | E115: 0
A116: ='手控書_(1-200)'!A51 -> 115 | B116: ='手控書_(1-200)'!B51 -> 0 | C116: ='手控書_(1-200)'!C51 -> 0 | D116: ='手控書_(1-200)'!D51 -> 0 | E116: 0
A117: ='手控書_(1-200)'!A52 -> 116 | B117: ='手控書_(1-200)'!B52 -> 0 | C117: ='手控書_(1-200)'!C52 -> 0 | D117: ='手控書_(1-200)'!D52 -> 0 | E117: 0
A118: ='手控書_(1-200)'!A53 -> 117 | B118: ='手控書_(1-200)'!B53 -> 0 | C118: ='手控書_(1-200)'!C53 -> 0 | D118: ='手控書_(1-200)'!D53 -> 0 | E118: 0
A119: ='手控書_(1-200)'!A54 -> 118 | B119: ='手控書_(1-200)'!B54 -> 0 | C119: ='手控書_(1-200)'!C54 -> 0 | D119: ='手控書_(1-200)'!D54 -> 0 | E119: 0
A120: ='手控書_(1-200)'!A55 -> 119 | B120: ='手控書_(1-200)'!B55 -> 0 | C120: ='手控書_(1-200)'!C55 -> 0 | D120: ='手控書_(1-200)'!D55 -> 0 | E120: 0
A121: ='手控書_(1-200)'!A56 -> 120 | B121: ='手控書_(1-200)'!B56 -> 0 | C121: ='手控書_(1-200)'!C56 -> 0 | D121: ='手控書_(1-200)'!D56 -> 0 | E121: 0
A122: ='手控書_(1-200)'!A57 -> 121 | B122: ='手控書_(1-200)'!B57 -> 0 | C122: ='手控書_(1-200)'!C57 -> 0 | D122: ='手控書_(1-200)'!D57 -> 0 | E122: 0
A123: ='手控書_(1-200)'!A58 -> 122 | B123: ='手控書_(1-200)'!B58 -> 0 | C123: ='手控書_(1-200)'!C58 -> 0 | D123: ='手控書_(1-200)'!D58 -> 0 | E123: 0
A124: ='手控書_(1-200)'!A59 -> 123 | B124: ='手控書_(1-200)'!B59 -> 0 | C124: ='手控書_(1-200)'!C59 -> 0 | D124: ='手控書_(1-200)'!D59 -> 0 | E124: 0
A125: ='手控書_(1-200)'!A60 -> 124 | B125: ='手控書_(1-200)'!B60 -> 0 | C125: ='手控書_(1-200)'!C60 -> 0 | D125: ='手控書_(1-200)'!D60 -> 0 | E125: 0
A126: ='手控書_(1-200)'!A61 -> 125 | B126: ='手控書_(1-200)'!B61 -> 0 | C126: ='手控書_(1-200)'!C61 -> 0 | D126: ='手控書_(1-200)'!D61 -> 0 | E126: 0
A127: ='手控書_(1-200)'!G37 -> 126 | B127: ='手控書_(1-200)'!H37 -> 0 | C127: ='手控書_(1-200)'!I37 -> 0 | D127: ='手控書_(1-200)'!J37 -> 0 | E127: 0
A128: ='手控書_(1-200)'!G38 -> 127 | B128: ='手控書_(1-200)'!H38 -> 0 | C128: ='手控書_(1-200)'!I38 -> 0 | D128: ='手控書_(1-200)'!J38 -> 0 | E128: 0
A129: ='手控書_(1-200)'!G39 -> 128 | B129: ='手控書_(1-200)'!H39 -> 0 | C129: ='手控書_(1-200)'!I39 -> 0 | D129: ='手控書_(1-200)'!J39 -> 0 | E129: 0
A130: ='手控書_(1-200)'!G40 -> 129 | B130: ='手控書_(1-200)'!H40 -> 0 | C130: ='手控書_(1-200)'!I40 -> 0 | D130: ='手控書_(1-200)'!J40 -> 0 | E130: 0
A131: ='手控書_(1-200)'!G41 -> 130 | B131: ='手控書_(1-200)'!H41 -> 0 | C131: ='手控書_(1-200)'!I41 -> 0 | D131: ='手控書_(1-200)'!J41 -> 0 | E131: =IF(COUNTIF(B131:D131,0)=3,0,IF(COUNTIF(B131:D131,"<> 0")=3,0,1)) -> 0
A132: ='手控書_(1-200)'!G42 -> 131 | B132: ='手控書_(1-200)'!H42 -> 0 | C132: ='手控書_(1-200)'!I42 -> 0 | D132: ='手控書_(1-200)'!J42 -> 0 | E132: 0
A133: ='手控書_(1-200)'!G43 -> 132 | B133: ='手控書_(1-200)'!H43 -> 0 | C133: ='手控書_(1-200)'!I43 -> 0 | D133: ='手控書_(1-200)'!J43 -> 0 | E133: 0
A134: ='手控書_(1-200)'!G44 -> 133 | B134: ='手控書_(1-200)'!H44 -> 0 | C134: ='手控書_(1-200)'!I44 -> 0 | D134: ='手控書_(1-200)'!J44 -> 0 | E134: 0
A135: ='手控書_(1-200)'!G45 -> 134 | B135: ='手控書_(1-200)'!H45 -> 0 | C135: ='手控書_(1-200)'!I45 -> 0 | D135: ='手控書_(1-200)'!J45 -> 0 | E135: 0
A136: ='手控書_(1-200)'!G46 -> 135 | B136: ='手控書_(1-200)'!H46 -> 0 | C136: ='手控書_(1-200)'!I46 -> 0 | D136: ='手控書_(1-200)'!J46 -> 0 | E136: 0
A137: ='手控書_(1-200)'!G47 -> 136 | B137: ='手控書_(1-200)'!H47 -> 0 | C137: ='手控書_(1-200)'!I47 -> 0 | D137: ='手控書_(1-200)'!J47 -> 0 | E137: 0
A138: ='手控書_(1-200)'!G48 -> 137 | B138: ='手控書_(1-200)'!H48 -> 0 | C138: ='手控書_(1-200)'!I48 -> 0 | D138: ='手控書_(1-200)'!J48 -> 0 | E138: 0
A139: ='手控書_(1-200)'!G49 -> 138 | B139: ='手控書_(1-200)'!H49 -> 0 | C139: ='手控書_(1-200)'!I49 -> 0 | D139: ='手控書_(1-200)'!J49 -> 0 | E139: 0
A140: ='手控書_(1-200)'!G50 -> 139 | B140: ='手控書_(1-200)'!H50 -> 0 | C140: ='手控書_(1-200)'!I50 -> 0 | D140: ='手控書_(1-200)'!J50 -> 0 | E140: 0
A141: ='手控書_(1-200)'!G51 -> 140 | B141: ='手控書_(1-200)'!H51 -> 0 | C141: ='手控書_(1-200)'!I51 -> 0 | D141: ='手控書_(1-200)'!J51 -> 0 | E141: 0
A142: ='手控書_(1-200)'!G52 -> 141 | B142: ='手控書_(1-200)'!H52 -> 0 | C142: ='手控書_(1-200)'!I52 -> 0 | D142: ='手控書_(1-200)'!J52 -> 0 | E142: 0
A143: ='手控書_(1-200)'!G53 -> 142 | B143: ='手控書_(1-200)'!H53 -> 0 | C143: ='手控書_(1-200)'!I53 -> 0 | D143: ='手控書_(1-200)'!J53 -> 0 | E143: 0
A144: ='手控書_(1-200)'!G54 -> 143 | B144: ='手控書_(1-200)'!H54 -> 0 | C144: ='手控書_(1-200)'!I54 -> 0 | D144: ='手控書_(1-200)'!J54 -> 0 | E144: 0
A145: ='手控書_(1-200)'!G55 -> 144 | B145: ='手控書_(1-200)'!H55 -> 0 | C145: ='手控書_(1-200)'!I55 -> 0 | D145: ='手控書_(1-200)'!J55 -> 0 | E145: 0
A146: ='手控書_(1-200)'!G56 -> 145 | B146: ='手控書_(1-200)'!H56 -> 0 | C146: ='手控書_(1-200)'!I56 -> 0 | D146: ='手控書_(1-200)'!J56 -> 0 | E146: 0
A147: ='手控書_(1-200)'!G57 -> 146 | B147: ='手控書_(1-200)'!H57 -> 0 | C147: ='手控書_(1-200)'!I57 -> 0 | D147: ='手控書_(1-200)'!J57 -> 0 | E147: 0
A148: ='手控書_(1-200)'!G58 -> 147 | B148: ='手控書_(1-200)'!H58 -> 0 | C148: ='手控書_(1-200)'!I58 -> 0 | D148: ='手控書_(1-200)'!J58 -> 0 | E148: 0
A149: ='手控書_(1-200)'!G59 -> 148 | B149: ='手控書_(1-200)'!H59 -> 0 | C149: ='手控書_(1-200)'!I59 -> 0 | D149: ='手控書_(1-200)'!J59 -> 0 | E149: 0
A150: ='手控書_(1-200)'!G60 -> 149 | B150: ='手控書_(1-200)'!H60 -> 0 | C150: ='手控書_(1-200)'!I60 -> 0 | D150: ='手控書_(1-200)'!J60 -> 0 | E150: 0
A151: ='手控書_(1-200)'!G61 -> 150 | B151: ='手控書_(1-200)'!H61 -> 0 | C151: ='手控書_(1-200)'!I61 -> 0 | D151: ='手控書_(1-200)'!J61 -> 0 | E151: 0
A152: ='手控書_(1-200)'!M37 -> 151 | B152: ='手控書_(1-200)'!N37 -> 0 | C152: ='手控書_(1-200)'!O37 -> 0 | D152: ='手控書_(1-200)'!P37 -> 0 | E152: 0
A153: ='手控書_(1-200)'!M38 -> 152 | B153: ='手控書_(1-200)'!N38 -> 0 | C153: ='手控書_(1-200)'!O38 -> 0 | D153: ='手控書_(1-200)'!P38 -> 0 | E153: 0
A154: ='手控書_(1-200)'!M39 -> 153 | B154: ='手控書_(1-200)'!N39 -> 0 | C154: ='手控書_(1-200)'!O39 -> 0 | D154: ='手控書_(1-200)'!P39 -> 0 | E154: 0
A155: ='手控書_(1-200)'!M40 -> 154 | B155: ='手控書_(1-200)'!N40 -> 0 | C155: ='手控書_(1-200)'!O40 -> 0 | D155: ='手控書_(1-200)'!P40 -> 0 | E155: 0
A156: ='手控書_(1-200)'!M41 -> 155 | B156: ='手控書_(1-200)'!N41 -> 0 | C156: ='手控書_(1-200)'!O41 -> 0 | D156: ='手控書_(1-200)'!P41 -> 0 | E156: 0
A157: ='手控書_(1-200)'!M42 -> 156 | B157: ='手控書_(1-200)'!N42 -> 0 | C157: ='手控書_(1-200)'!O42 -> 0 | D157: ='手控書_(1-200)'!P42 -> 0 | E157: 0
A158: ='手控書_(1-200)'!M43 -> 157 | B158: ='手控書_(1-200)'!N43 -> 0 | C158: ='手控書_(1-200)'!O43 -> 0 | D158: ='手控書_(1-200)'!P43 -> 0 | E158: 0
A159: ='手控書_(1-200)'!M44 -> 158 | B159: ='手控書_(1-200)'!N44 -> 0 | C159: ='手控書_(1-200)'!O44 -> 0 | D159: ='手控書_(1-200)'!P44 -> 0 | E159: 0
A160: ='手控書_(1-200)'!M45 -> 159 | B160: ='手控書_(1-200)'!N45 -> 0 | C160: ='手控書_(1-200)'!O45 -> 0 | D160: ='手控書_(1-200)'!P45 -> 0 | E160: 0
A161: ='手控書_(1-200)'!M46 -> 160 | B161: ='手控書_(1-200)'!N46 -> 0 | C161: ='手控書_(1-200)'!O46 -> 0 | D161: ='手控書_(1-200)'!P46 -> 0 | E161: 0
A162: ='手控書_(1-200)'!M47 -> 161 | B162: ='手控書_(1-200)'!N47 -> 0 | C162: ='手控書_(1-200)'!O47 -> 0 | D162: ='手控書_(1-200)'!P47 -> 0 | E162: 0
A163: ='手控書_(1-200)'!M48 -> 162 | B163: ='手控書_(1-200)'!N48 -> 0 | C163: ='手控書_(1-200)'!O48 -> 0 | D163: ='手控書_(1-200)'!P48 -> 0 | E163: 0
A164: ='手控書_(1-200)'!M49 -> 163 | B164: ='手控書_(1-200)'!N49 -> 0 | C164: ='手控書_(1-200)'!O49 -> 0 | D164: ='手控書_(1-200)'!P49 -> 0 | E164: 0
A165: ='手控書_(1-200)'!M50 -> 164 | B165: ='手控書_(1-200)'!N50 -> 0 | C165: ='手控書_(1-200)'!O50 -> 0 | D165: ='手控書_(1-200)'!P50 -> 0 | E165: 0
A166: ='手控書_(1-200)'!M51 -> 165 | B166: ='手控書_(1-200)'!N51 -> 0 | C166: ='手控書_(1-200)'!O51 -> 0 | D166: ='手控書_(1-200)'!P51 -> 0 | E166: 0
A167: ='手控書_(1-200)'!M52 -> 166 | B167: ='手控書_(1-200)'!N52 -> 0 | C167: ='手控書_(1-200)'!O52 -> 0 | D167: ='手控書_(1-200)'!P52 -> 0 | E167: 0
A168: ='手控書_(1-200)'!M53 -> 167 | B168: ='手控書_(1-200)'!N53 -> 0 | C168: ='手控書_(1-200)'!O53 -> 0 | D168: ='手控書_(1-200)'!P53 -> 0 | E168: 0
A169: ='手控書_(1-200)'!M54 -> 168 | B169: ='手控書_(1-200)'!N54 -> 0 | C169: ='手控書_(1-200)'!O54 -> 0 | D169: ='手控書_(1-200)'!P54 -> 0 | E169: 0
A170: ='手控書_(1-200)'!M55 -> 169 | B170: ='手控書_(1-200)'!N55 -> 0 | C170: ='手控書_(1-200)'!O55 -> 0 | D170: ='手控書_(1-200)'!P55 -> 0 | E170: 0
A171: ='手控書_(1-200)'!M56 -> 170 | B171: ='手控書_(1-200)'!N56 -> 0 | C171: ='手控書_(1-200)'!O56 -> 0 | D171: ='手控書_(1-200)'!P56 -> 0 | E171: 0
A172: ='手控書_(1-200)'!M57 -> 171 | B172: ='手控書_(1-200)'!N57 -> 0 | C172: ='手控書_(1-200)'!O57 -> 0 | D172: ='手控書_(1-200)'!P57 -> 0 | E172: 0
A173: ='手控書_(1-200)'!M58 -> 172 | B173: ='手控書_(1-200)'!N58 -> 0 | C173: ='手控書_(1-200)'!O58 -> 0 | D173: ='手控書_(1-200)'!P58 -> 0 | E173: 0
A174: ='手控書_(1-200)'!M59 -> 173 | B174: ='手控書_(1-200)'!N59 -> 0 | C174: ='手控書_(1-200)'!O59 -> 0 | D174: ='手控書_(1-200)'!P59 -> 0 | E174: 0
A175: ='手控書_(1-200)'!M60 -> 174 | B175: ='手控書_(1-200)'!N60 -> 0 | C175: ='手控書_(1-200)'!O60 -> 0 | D175: ='手控書_(1-200)'!P60 -> 0 | E175: 0
A176: ='手控書_(1-200)'!M61 -> 175 | B176: ='手控書_(1-200)'!N61 -> 0 | C176: ='手控書_(1-200)'!O61 -> 0 | D176: ='手控書_(1-200)'!P61 -> 0 | E176: 0
A177: ='手控書_(1-200)'!S37 -> 176 | B177: ='手控書_(1-200)'!T37 -> 0 | C177: ='手控書_(1-200)'!U37 -> 0 | D177: ='手控書_(1-200)'!V37 -> 0 | E177: 0
A178: ='手控書_(1-200)'!S38 -> 177 | B178: ='手控書_(1-200)'!T38 -> 0 | C178: ='手控書_(1-200)'!U38 -> 0 | D178: ='手控書_(1-200)'!V38 -> 0 | E178: 0
A179: ='手控書_(1-200)'!S39 -> 178 | B179: ='手控書_(1-200)'!T39 -> 0 | C179: ='手控書_(1-200)'!U39 -> 0 | D179: ='手控書_(1-200)'!V39 -> 0 | E179: 0
A180: ='手控書_(1-200)'!S40 -> 179 | B180: ='手控書_(1-200)'!T40 -> 0 | C180: ='手控書_(1-200)'!U40 -> 0 | D180: ='手控書_(1-200)'!V40 -> 0 | E180: 0
A181: ='手控書_(1-200)'!S41 -> 180 | B181: ='手控書_(1-200)'!T41 -> 0 | C181: ='手控書_(1-200)'!U41 -> 0 | D181: ='手控書_(1-200)'!V41 -> 0 | E181: 0
A182: ='手控書_(1-200)'!S42 -> 181 | B182: ='手控書_(1-200)'!T42 -> 0 | C182: ='手控書_(1-200)'!U42 -> 0 | D182: ='手控書_(1-200)'!V42 -> 0 | E182: 0
A183: ='手控書_(1-200)'!S43 -> 182 | B183: ='手控書_(1-200)'!T43 -> 0 | C183: ='手控書_(1-200)'!U43 -> 0 | D183: ='手控書_(1-200)'!V43 -> 0 | E183: 0
A184: ='手控書_(1-200)'!S44 -> 183 | B184: ='手控書_(1-200)'!T44 -> 0 | C184: ='手控書_(1-200)'!U44 -> 0 | D184: ='手控書_(1-200)'!V44 -> 0 | E184: 0
A185: ='手控書_(1-200)'!S45 -> 184 | B185: ='手控書_(1-200)'!T45 -> 0 | C185: ='手控書_(1-200)'!U45 -> 0 | D185: ='手控書_(1-200)'!V45 -> 0 | E185: 0
A186: ='手控書_(1-200)'!S46 -> 185 | B186: ='手控書_(1-200)'!T46 -> 0 | C186: ='手控書_(1-200)'!U46 -> 0 | D186: ='手控書_(1-200)'!V46 -> 0 | E186: 0
A187: ='手控書_(1-200)'!S47 -> 186 | B187: ='手控書_(1-200)'!T47 -> 0 | C187: ='手控書_(1-200)'!U47 -> 0 | D187: ='手控書_(1-200)'!V47 -> 0 | E187: 0
A188: ='手控書_(1-200)'!S48 -> 187 | B188: ='手控書_(1-200)'!T48 -> 0 | C188: ='手控書_(1-200)'!U48 -> 0 | D188: ='手控書_(1-200)'!V48 -> 0 | E188: 0
A189: ='手控書_(1-200)'!S49 -> 188 | B189: ='手控書_(1-200)'!T49 -> 0 | C189: ='手控書_(1-200)'!U49 -> 0 | D189: ='手控書_(1-200)'!V49 -> 0 | E189: 0
A190: ='手控書_(1-200)'!S50 -> 189 | B190: ='手控書_(1-200)'!T50 -> 0 | C190: ='手控書_(1-200)'!U50 -> 0 | D190: ='手控書_(1-200)'!V50 -> 0 | E190: 0
A191: ='手控書_(1-200)'!S51 -> 190 | B191: ='手控書_(1-200)'!T51 -> 0 | C191: ='手控書_(1-200)'!U51 -> 0 | D191: ='手控書_(1-200)'!V51 -> 0 | E191: 0
A192: ='手控書_(1-200)'!S52 -> 191 | B192: ='手控書_(1-200)'!T52 -> 0 | C192: ='手控書_(1-200)'!U52 -> 0 | D192: ='手控書_(1-200)'!V52 -> 0 | E192: 0
A193: ='手控書_(1-200)'!S53 -> 192 | B193: ='手控書_(1-200)'!T53 -> 0 | C193: ='手控書_(1-200)'!U53 -> 0 | D193: ='手控書_(1-200)'!V53 -> 0 | E193: 0
A194: ='手控書_(1-200)'!S54 -> 193 | B194: ='手控書_(1-200)'!T54 -> 0 | C194: ='手控書_(1-200)'!U54 -> 0 | D194: ='手控書_(1-200)'!V54 -> 0 | E194: 0
A195: ='手控書_(1-200)'!S55 -> 194 | B195: ='手控書_(1-200)'!T55 -> 0 | C195: ='手控書_(1-200)'!U55 -> 0 | D195: ='手控書_(1-200)'!V55 -> 0 | E195: =IF(COUNTIF(B195:D195,0)=3,0,IF(COUNTIF(B195:D195,"<> 0")=3,0,1)) -> 0
A196: ='手控書_(1-200)'!S56 -> 195 | B196: ='手控書_(1-200)'!T56 -> 0 | C196: ='手控書_(1-200)'!U56 -> 0 | D196: ='手控書_(1-200)'!V56 -> 0 | E196: 0
A197: ='手控書_(1-200)'!S57 -> 196 | B197: ='手控書_(1-200)'!T57 -> 0 | C197: ='手控書_(1-200)'!U57 -> 0 | D197: ='手控書_(1-200)'!V57 -> 0 | E197: 0
A198: ='手控書_(1-200)'!S58 -> 197 | B198: ='手控書_(1-200)'!T58 -> 0 | C198: ='手控書_(1-200)'!U58 -> 0 | D198: ='手控書_(1-200)'!V58 -> 0 | E198: 0
A199: ='手控書_(1-200)'!S59 -> 198 | B199: ='手控書_(1-200)'!T59 -> 0 | C199: ='手控書_(1-200)'!U59 -> 0 | D199: ='手控書_(1-200)'!V59 -> 0 | E199: 0
A200: ='手控書_(1-200)'!S60 -> 199 | B200: ='手控書_(1-200)'!T60 -> 0 | C200: ='手控書_(1-200)'!U60 -> 0 | D200: ='手控書_(1-200)'!V60 -> 0 | E200: 0
... 203 more rows
